bitfinex-derivatives/quotes_BTCF0:USTF0_20260113
["timestamp","ask_amount","ask_price","bid_price","bid_amount"]
[1768299341730,0.09549381,92267.0,92254.0,0.01085]
[1768299342928,0.10734281,92266.0,92254.0,0.01085]
[1768299343626,0.09649381,92266.0,92249.0,0.01085]
[1768299344430,0.09649381,92266.0,92254.0,0.01085]
[1768299346032,0.09649381,92266.0,92248.0,0.07143242]
[1768299346420,0.09649381,92266.0,92254.0,0.01085]
[1768299347128,0.1891876,92266.0,92252.0,0.01085]
[1768299347432,0.09649381,92262.0,92246.0,0.010851]
[1768299347632,0.09269379,92263.0,92256.0,0.01085]
[1768299348933,0.09649381,92266.0,92256.0,0.01085]
[1768299350532,0.10734281,92266.0,92246.0,0.010851]
[1768299351235,0.2000366,92266.0,92246.0,0.010851]
[1768299351525,0.09649381,92265.0,92246.0,0.010851]
[1768299351931,0.09649381,92258.0,92245.0,0.01627138]
[1768299352120,0.10734381,92258.0,92246.0,0.010851]
[1768299352326,0.010848,92267.0,92245.0,0.00542038]
[1768299352327,0.2000376,92257.0,92245.0,0.00542038]
[1768299352524,0.09649381,92256.0,92245.0,0.00542038]
[1768299352726,0.09649381,92256.0,92245.0,0.01627138]
[1768299353534,0.09269379,92255.0,92238.0,0.00238515]
[1768299353834,0.09269379,92255.0,92243.0,0.010851]
[1768299354020,0.1891876,92255.0,92243.0,0.010851]
[1768299354225,0.09649381,92254.0,92243.0,0.010851]
[1768299354825,0.09649381,92254.0,92238.0,0.00238515]
[1768299355026,0.09649381,92250.0,92238.0,1.5e-07]
[1768299355230,0.10734481,92247.0,92238.0,1.5e-07]
[1768299355432,0.09649381,92247.0,92238.0,1.5e-07]
[1768299357434,0.1891876,92246.0,92238.0,1.5e-07]
[1768299357633,0.09649381,92250.0,92240.0,0.010852]
[1768299357831,0.09649381,92250.0,92241.0,0.010851]
[1768299358839,0.09649381,92250.0,92231.0,0.07369589]
[1768299359235,0.09649381,92250.0,92241.0,0.010851]
[1768299361731,0.09269379,92245.0,92231.0,0.010853]
[1768299361937,0.09649381,92242.0,92223.0,0.09768]
[1768299362141,0.09269379,92241.0,92223.0,0.09768]
[1768299362341,0.09269379,92241.0,92235.0,0.010852]
[1768299362842,0.09269379,92241.0,92222.0,0.09084474]
[1768299363040,0.09269379,92241.0,92230.0,0.010853]
[1768299363342,0.09269379,92241.0,92227.0,0.010853]
[1768299363934,0.1891876,92241.0,92227.0,0.010853]
[1768299364138,0.01085,92253.0,92216.0,0.09768]
[1768299364139,0.09269379,92231.0,92216.0,0.09768]
[1768299364341,0.09649381,92224.0,92216.0,0.010854]
[1768299364739,0.09649381,92224.0,92211.0,0.09768]
[1768299364740,0.09269379,92225.0,92218.0,0.010854]
[1768299364941,0.09073622,92228.0,92218.0,0.010854]
[1768299365232,0.0942792,92236.0,92214.0,0.09609698]
[1768299365433,0.010848,92267.0,92226.0,0.19166696]
[1768299365746,0.01085,92254.0,92237.0,0.010852]
[1768299365949,0.09768,92253.0,92234.0,0.010852]
[1768299366249,0.010851,92248.0,92234.0,0.010852]
[1768299366448,0.0942792,92247.0,92226.0,0.09142298]
[1768299366650,0.0942792,92247.0,92233.0,0.010852]
[1768299366948,0.0942792,92246.0,92233.0,0.010852]
[1768299367342,0.07417594,92244.0,92233.0,0.010852]
[1768299368035,0.16704491,92243.0,92229.0,0.010853]
[1768299368232,0.07276571,92236.0,92225.0,0.010853]
[1768299368436,0.07276571,92236.0,92224.0,0.010853]
[1768299368437,0.07276571,92235.0,92224.0,0.010853]
[1768299368745,0.07276571,92234.0,92214.0,0.09556998]
[1768299368940,0.07276571,92234.0,92214.0,0.19324998]
[1768299369145,0.07276571,92234.0,92214.0,0.28934696]
[1768299369448,0.07276571,92234.0,92226.0,0.010853]
[1768299369954,0.07276571,92234.0,92214.0,0.28934696]
[1768299370249,0.07276571,92234.0,92225.0,0.010853]
[1768299370634,0.06623243,92238.0,92229.0,0.010853]
[1768299371246,0.0942792,92241.0,92220.0,0.09556998]
[1768299371433,0.15839373,92241.0,92220.0,0.19166696]
[1768299371639,0.15839373,92241.0,92221.0,0.19166696]
[1768299371841,0.15839373,92241.0,92221.0,0.20252096]
[1768299372042,0.15839373,92241.0,92233.0,0.010852]
[1768299372451,0.09768,92247.0,92224.0,0.09556998]
[1768299372652,0.09768,92251.0,92239.0,0.010852]
[1768299373846,0.01085,92250.0,92237.0,0.010852]
[1768299374249,0.01085,92250.0,92225.0,0.28605196]
[1768299374652,0.00037074,92247.0,92225.0,0.28605196]
[1768299374955,0.00037074,92247.0,92238.0,0.010852]
[1768299378257,0.00037074,92247.0,92236.0,0.010852]
[1768299378460,0.00542038,92245.0,92236.0,0.010852]
[1768299378957,0.00542038,92245.0,92229.0,0.09428132]
[1768299378958,0.00584834,92245.0,92234.0,0.010852]
[1768299379859,0.00584834,92245.0,92235.0,0.010852]
[1768299380555,0.00240483,92242.0,92230.0,0.010853]
[1768299380752,0.00240483,92238.0,92223.0,0.09768]
[1768299381147,0.01325683,92238.0,92223.0,0.108534]
[1768299381461,0.01325683,92238.0,92215.0,0.010854]
[1768299381462,0.00240483,92238.0,92220.0,0.19115338]
[1768299381651,0.010852,92240.0,92222.0,0.09428132]
[1768299381852,0.010852,92240.0,92228.0,0.010853]
[1768299382045,0.010852,92240.0,92222.0,0.09013432]
[1768299382250,0.08237174,92242.0,92228.0,0.010853]
[1768299382660,0.08237174,92242.0,92230.0,0.010853]
[1768299382854,0.01627138,92245.0,92232.0,0.010853]
[1768299383250,0.00332365,92244.0,92232.0,0.010853]
[1768299383655,0.01417465,92244.0,92229.0,0.010853]
[1768299383961,0.01417465,92244.0,92231.0,0.010853]
[1768299384658,0.00254902,92242.0,92224.0,0.09428132]
[1768299384867,0.00254902,92235.0,92225.0,0.010853]
[1768299385054,0.00254902,92235.0,92225.0,0.00830398]
[1768299385458,0.010852,92240.0,92225.0,0.00830398]
[1768299385965,0.010852,92238.0,92225.0,0.00830398]
[1768299389760,0.010852,92238.0,92218.0,0.09428132]
[1768299390065,0.010852,92238.0,92219.0,0.09428132]
[1768299390565,0.010852,92238.0,92220.0,0.09428132]
[1768299390753,0.09768,92241.0,92220.0,0.09428132]
[1768299390754,0.010853,92231.0,92220.0,0.09428132]
[1768299390949,0.010853,92227.0,92208.0,0.09666724]
[1768299391167,0.010854,92224.0,92210.0,0.010855]
[1768299391660,0.010853,92227.0,92212.0,0.010855]
[1768299392061,0.010853,92227.0,92208.0,0.09666724]
[1768299392062,0.010853,92227.0,92214.0,0.010855]
[1768299392264,0.010853,92227.0,92211.0,0.010855]
[1768299392867,0.23912223,92230.0,92215.0,0.010855]
[1768299393055,0.108533,92230.0,92215.0,0.010855]
[1768299394267,0.09768,92230.0,92222.0,0.010854]
[1768299395767,0.010853,92227.0,92212.0,0.010855]
[1768299395965,0.13066727,92222.0,92214.0,0.010855]
[1768299396164,0.13066727,92224.0,92214.0,0.010855]
[1768299397465,0.13066727,92224.0,92208.0,0.09658127]
[1768299397668,0.010853,92228.0,92214.0,0.010855]
[1768299397967,0.13066727,92224.0,92216.0,0.010854]
[1768299398169,0.22834727,92230.0,92218.0,0.010854]
[1768299398571,0.13066727,92228.0,92218.0,0.010854]
[1768299399169,0.13066727,92228.0,92213.0,0.09634035]
[1768299399368,0.13066727,92223.0,92213.0,0.09634035]
[1768299399767,0.13066727,92223.0,92212.0,0.010855]
[1768299399970,0.13066727,92222.0,92212.0,0.010855]
[1768299401169,0.17119642,92230.0,92212.0,0.010855]
[1768299401565,0.13066727,92222.0,92212.0,0.010855]
[1768299403169,0.13066727,92222.0,92210.0,0.010855]
[1768299403376,0.14152127,92220.0,92208.0,0.01109592]
[1768299403764,0.13066727,92220.0,92208.0,0.01109592]
[1768299403964,0.13066727,92220.0,92209.0,0.010855]
[1768299404274,0.22834727,92220.0,92209.0,0.010855]
[1768299404969,0.22834727,92220.0,92205.0,0.00542273]
[1768299404970,0.35901454,92220.0,92206.0,0.010856]
[1768299405274,0.22834727,92220.0,92202.0,0.09461808]
[1768299405571,0.13066727,92212.0,92205.0,0.00016258]
[1768299405869,0.13066727,92215.0,92205.0,0.00016258]
[1768299406269,0.13066727,92215.0,92207.0,0.010855]
[1768299406470,0.14152127,92217.0,92205.0,0.01101858]
[1768299406671,0.13066727,92215.0,92205.0,0.01101858]
[1768299407669,0.14152227,92215.0,92205.0,0.00016258]
[1768299407878,0.13066727,92215.0,92205.0,0.00016258]
[1768299408473,0.13066727,92215.0,92197.0,0.09634035]
[1768299408676,0.13066727,92210.0,92202.0,0.010856]
[1768299408973,0.13066727,92212.0,92202.0,0.010856]
[1768299409470,0.13066727,92212.0,92198.0,0.010856]
[1768299409779,0.13066727,92210.0,92197.0,0.09634035]
[1768299410370,0.13066727,92210.0,92196.0,0.010857]
[1768299410371,0.13066727,92207.0,92196.0,0.010857]
[1768299410573,0.09768,92210.0,92189.0,0.18835209]
[1768299410574,0.22834727,92210.0,92189.0,0.18835209]
[1768299410874,0.22834727,92210.0,92178.0,0.1000667]
[1768299410875,0.22834727,92210.0,92198.0,0.010856]
[1768299411060,0.22834727,92210.0,92200.0,0.010856]
[1768299411465,0.13066727,92210.0,92200.0,0.010856]
[1768299411686,9.114e-05,92209.0,92200.0,0.010856]
[1768299411866,0.09777114,92209.0,92200.0,0.010856]
[1768299412067,0.09777114,92209.0,92197.0,0.010857]
[1768299413076,0.09777114,92209.0,92191.0,0.09634035]
[1768299413077,0.09777114,92209.0,92191.0,0.09419735]
[1768299413276,0.07913328,92208.0,92185.0,0.01628191]
[1768299413576,0.09768,92207.0,92190.0,0.09201174]
[1768299413983,0.16556039,92207.0,92185.0,0.00542391]
[1768299414180,0.09768,92207.0,92195.0,0.010857]
[1768299414774,9.114e-05,92209.0,92190.0,0.22267901]
[1768299414775,0.09772,92206.0,92190.0,0.22267901]
[1768299414974,9.114e-05,92209.0,92201.0,0.010856]
[1768299415274,9.114e-05,92209.0,92190.0,0.13066727]
[1768299415275,0.09772,92208.0,92200.0,0.010856]
[1768299415473,0.09772,92208.0,92199.0,0.09634035]
[1768299416179,0.09772,92208.0,92197.0,0.010857]
[1768299416580,0.09772,92208.0,92194.0,0.010857]
[1768299417078,0.108575,92208.0,92194.0,0.010857]
[1768299417277,0.13066727,92204.0,92193.0,0.010857]
[1768299417580,0.13066727,92204.0,92195.0,0.010857]
[1768299417779,0.09772,92208.0,92195.0,0.010857]
[1768299418084,0.13066727,92205.0,92195.0,0.010857]
[1768299418380,0.13066727,92205.0,92194.0,0.010857]
[1768299419191,9.114e-05,92209.0,92196.0,0.010857]
[1768299419378,9.114e-05,92209.0,92202.0,0.010856]
[1768299420584,9.114e-05,92209.0,92199.0,0.010856]
[1768299420781,9.114e-05,92209.0,92195.0,0.09219635]
[1768299421284,9.114e-05,92209.0,92203.0,0.010856]
[1768299423676,1.4e-07,92210.0,92198.0,0.18835209]
[1768299423987,1.4e-07,92210.0,92199.0,0.09634035]
[1768299424376,1.4e-07,92210.0,92203.0,0.010856]
[1768299424877,1.4e-07,92210.0,92204.0,0.010856]
[1768299426088,1.4e-07,92210.0,92205.0,0.010856]
[1768299426290,1.4e-07,92210.0,92206.0,0.010856]
[1768299426791,1.4e-07,92210.0,92199.0,0.09634035]
[1768299427090,1.4e-07,92210.0,92204.0,0.010856]
[1768299427389,1.4e-07,92210.0,92205.0,0.010856]
[1768299428390,1.4e-07,92210.0,92199.0,0.09119635]
[1768299428892,1.4e-07,92210.0,92203.0,0.010856]
[1768299429590,0.00016267,92219.0,92191.0,0.010857]
[1768299429591,0.00016267,92219.0,92212.0,0.09685989]
[1768299429784,0.09772,92226.0,92214.0,0.09685989]
[1768299430088,0.13066727,92224.0,92214.0,0.09685989]
[1768299430287,0.13066727,92224.0,92208.0,0.09685989]
[1768299430484,0.09772,92225.0,92209.0,0.09664138]
[1768299430686,0.13066727,92220.0,92209.0,0.09664138]
[1768299431087,0.13066727,92220.0,92209.0,0.10749638]
[1768299431491,0.09772,92232.0,92219.0,0.19350127]
[1768299431793,0.13066727,92230.0,92222.0,0.09664138]
[1768299431982,0.010853,92230.0,92222.0,0.09664138]
[1768299432594,0.13066727,92232.0,92222.0,0.09664138]
[1768299433291,0.09772,92234.0,92222.0,0.09664138]
[1768299433497,0.09772,92234.0,92220.0,0.09685989]
[1768299433498,0.09772,92234.0,92227.0,0.010853]
[1768299433692,0.09772,92238.0,92225.0,0.09664138]
[1768299433891,0.010852,92237.0,92225.0,0.09664138]
[1768299434205,0.09772,92238.0,92229.0,0.09664138]
[1768299436200,0.09772,92238.0,92229.0,0.08764138]
[1768299436990,0.09772,92238.0,92225.0,0.010853]
[1768299439302,0.09772,92238.0,92228.0,0.010853]
[1768299439887,0.09772,92238.0,92232.0,0.010853]
[1768299440998,0.09772,92238.0,92225.0,0.09575213]
[1768299440999,0.09772,92244.0,92238.0,0.10660413]
[1768299441303,0.13066727,92250.0,92239.0,0.09575213]
[1768299442505,0.13066727,92250.0,92240.0,0.010852]
[1768299443795,0.13066727,92250.0,92240.0,0.19714749]
[1768299443994,0.13066727,92250.0,92240.0,0.18214749]
[1768299444205,0.13066727,92250.0,92240.0,0.10245613]
[1768299444909,0.13066727,92250.0,92242.0,0.010851]
[1768299444910,0.02513934,92249.0,92242.0,0.010851]
[1768299445101,0.02513934,92248.0,92242.0,0.010851]
[1768299445306,0.02513934,92247.0,92242.0,0.010851]
[1768299445502,0.02513934,92246.0,92242.0,0.010851]
[1768299445705,0.09772,92252.0,92242.0,0.010851]
[1768299446007,0.02513675,92251.0,92242.0,0.010851]
[1768299446209,0.02513675,92250.0,92242.0,0.010851]
[1768299446406,0.02513675,92249.0,92242.0,0.010851]
[1768299446707,0.02513675,92249.0,92238.0,0.18629549]
[1768299446708,0.02513675,92248.0,92238.0,0.18629549]
[1768299446909,0.108529,92259.0,92238.0,0.18629549]
[1768299447210,0.02494584,92258.0,92242.0,0.09575213]
[1768299447510,0.02494584,92257.0,92245.0,0.010851]
[1768299447706,0.02494584,92256.0,92246.0,0.010851]
[1768299447901,0.02494584,92255.0,92246.0,0.010851]
[1768299448210,0.02494584,92254.0,92246.0,0.010851]
[1768299448410,0.09768,92259.0,92246.0,0.010851]
[1768299448711,0.02493953,92258.0,92246.0,0.010851]
[1768299449009,0.02493953,92257.0,92246.0,0.00846585]
[1768299449308,0.02493953,92256.0,92246.0,0.00846585]
[1768299449512,0.02493953,92255.0,92246.0,0.00846585]
[1768299449700,0.02493953,92254.0,92247.0,0.010851]
[1768299449901,0.09768,92259.0,92247.0,0.010851]
[1768299450103,0.02493729,92258.0,92247.0,0.010851]
[1768299450301,0.02493729,92257.0,92247.0,0.010851]
[1768299450606,0.02493729,92256.0,92247.0,0.010851]
[1768299450806,0.02493729,92255.0,92247.0,0.010851]
[1768299451003,0.09768,92259.0,92247.0,0.010851]
[1768299451312,0.02493387,92258.0,92248.0,0.010851]
[1768299451513,0.02493387,92257.0,92248.0,0.010851]
[1768299451714,0.02493387,92256.0,92243.0,0.09575213]
[1768299452011,0.02493387,92255.0,92243.0,0.09575213]
[1768299452204,0.09768,92259.0,92243.0,0.09575213]
[1768299452400,0.02493262,92258.0,92243.0,0.09575213]
[1768299452711,0.02493262,92257.0,92243.0,0.09575213]
[1768299452913,0.09768,92259.0,92243.0,0.09575213]
[1768299453109,0.02493263,92258.0,92248.0,0.010851]
[1768299453308,0.02493263,92257.0,92248.0,0.010851]
[1768299453612,0.02493263,92256.0,92248.0,0.010851]
[1768299453815,0.02493263,92255.0,92248.0,0.010851]
[1768299453999,0.09768,92259.0,92248.0,0.010851]
[1768299454199,0.02493341,92258.0,92248.0,0.010851]
[1768299454408,0.02493341,92257.0,92248.0,0.010851]
[1768299454608,0.02493341,92256.0,92248.0,0.010851]
[1768299454809,0.09768,92259.0,92248.0,0.010851]
[1768299455210,0.10876663,92259.0,92245.0,0.010851]
[1768299455609,0.01190679,92258.0,92246.0,0.010851]
[1768299459120,0.01190679,92258.0,92240.0,0.1000399]
[1768299459619,0.01190679,92258.0,92240.0,0.09461835]
[1768299460322,0.01190679,92258.0,92244.0,0.010851]
[1768299461516,0.01190679,92258.0,92240.0,0.09461835]
[1768299461517,0.01190679,92258.0,92246.0,0.010851]
[1768299461905,0.09768,92259.0,92246.0,0.010851]
[1768299462111,0.09768,92259.0,92239.0,0.0944651]
[1768299462112,0.09768,92259.0,92248.0,0.11072823]
[1768299463124,0.09768,92259.0,92250.0,0.01085]
[1768299463719,0.09768,92259.0,92247.0,0.010851]
[1768299463919,0.09768,92259.0,92245.0,0.010851]
[1768299464312,0.09768,92259.0,92243.0,0.09172823]
[1768299465023,0.108529,92259.0,92245.0,0.010851]
[1768299465226,0.120237,92259.0,92245.0,0.010851]
[1768299467618,0.108529,92259.0,92245.0,0.00543062]
[1768299469229,0.02500688,92258.0,92245.0,0.00543062]
[1768299469417,0.108529,92259.0,92245.0,0.00543062]
[1768299469617,0.02500688,92258.0,92245.0,0.00543062]
[1768299469827,0.09768,92259.0,92248.0,0.010851]
[1768299470326,0.0250074,92258.0,92248.0,0.010851]
[1768299470628,0.09768,92259.0,92248.0,0.010851]
[1768299470827,0.02501547,92258.0,92248.0,0.010851]
[1768299471028,0.10781436,92259.0,92248.0,0.010851]
[1768299471223,0.02501546,92258.0,92248.0,0.010851]
[1768299471431,0.02501546,92257.0,92243.0,0.09172823]
[1768299471629,0.10781436,92259.0,92243.0,0.09172823]
[1768299471831,0.02501878,92258.0,92243.0,0.09172823]
[1768299472130,0.02501878,92257.0,92243.0,0.07657923]
[1768299472329,0.10781436,92259.0,92243.0,0.07657923]
[1768299472530,0.02502188,92258.0,92243.0,0.07657923]
[1768299472733,0.02502188,92257.0,92248.0,0.010851]
[1768299473032,0.09768,92259.0,92248.0,0.010851]
[1768299473224,0.02502182,92258.0,92248.0,0.010851]
[1768299473535,0.02502182,92257.0,92246.0,0.010851]
[1768299473730,0.09768,92259.0,92246.0,0.010851]
[1768299473930,0.02502343,92258.0,92246.0,0.010851]
[1768299474129,0.02502343,92257.0,92246.0,0.010851]
[1768299474432,0.09768,92259.0,92243.0,0.07657923]
[1768299474733,0.0250273,92258.0,92243.0,0.07657923]
[1768299474937,0.09768,92259.0,92243.0,0.07657923]
[1768299474938,0.0250273,92257.0,92243.0,0.07657923]
[1768299475231,0.02503223,92256.0,92243.0,0.07657923]
[1768299475426,0.09768,92259.0,92246.0,0.010851]
[1768299475621,0.02503227,92258.0,92246.0,0.010851]
[1768299475827,0.02503227,92258.0,92243.0,0.07657923]
[1768299475828,0.02503227,92257.0,92247.0,0.010851]
[1768299476035,0.02503227,92256.0,92246.0,0.010851]
[1768299476232,0.0250249,92255.0,92246.0,0.010851]
[1768299476429,0.01085,92258.0,92243.0,0.07657923]
[1768299476635,0.02502487,92257.0,92243.0,0.07657923]
[1768299476942,0.02502487,92256.0,92243.0,0.07657923]
[1768299477232,0.02502487,92255.0,92243.0,0.07657923]
[1768299477431,0.02502487,92254.0,92243.0,0.08743023]
[1768299477623,0.01085,92258.0,92244.0,0.010851]
[1768299477825,0.01085,92255.0,92241.0,0.010851]
[1768299478020,0.01147979,92247.0,92227.0,0.0944651]
[1768299478227,0.010851,92246.0,92229.0,0.010853]
[1768299478431,0.010851,92244.0,92227.0,0.1921451]
[1768299478626,0.010851,92242.0,92227.0,0.108533]
[1768299478829,0.010851,92243.0,92227.0,0.108533]
[1768299479621,0.01147979,92246.0,92227.0,0.09768]
[1768299479819,0.010852,92237.0,92225.0,0.09768]
[1768299480029,0.010852,92237.0,92217.0,0.1186]
[1768299480030,0.03279773,92237.0,92217.0,0.21628]
[1768299480333,0.010853,92232.0,92217.0,0.09768]
[1768299480925,0.010852,92235.0,92217.0,0.108534]
[1768299481230,0.010852,92235.0,92219.0,0.010854]
[1768299481630,0.00016267,92236.0,92219.0,0.010854]
[1768299481827,0.00016267,92236.0,92224.0,0.0944651]
[1768299482028,0.010849,92260.0,92235.0,0.0944651]
[1768299482029,0.010851,92248.0,92235.0,0.0944651]
[1768299482337,0.010851,92246.0,92235.0,0.0944651]
[1768299482634,0.12272132,92245.0,92234.0,0.09987723]
[1768299482834,0.09768,92245.0,92234.0,0.09987723]
[1768299483439,0.09768,92245.0,92235.0,0.0944651]
[1768299485327,0.09768,92245.0,92236.0,0.010852]
[1768299485939,0.09768,92251.0,92240.0,0.0923364]
[1768299487732,0.09768,92251.0,92242.0,0.010851]
[1768299487929,0.09768,92251.0,92244.0,0.010851]
[1768299488131,0.03280926,92271.0,92252.0,0.09276512]
[1768299488434,2e-07,92265.0,92262.0,0.010849]
[1768299488631,3.7e-07,92268.0,92265.0,0.010849]
[1768299488827,0.00541803,92285.0,92268.0,0.18510152]
[1768299489036,0.0250252,92284.0,92272.0,0.010848]
[1768299489234,0.0250252,92283.0,92274.0,0.010848]
[1768299489437,0.0250252,92282.0,92270.0,0.18510152]
[1768299489740,0.0250252,92281.0,92272.0,0.09276512]
[1768299489932,0.00541803,92285.0,92273.0,0.0923364]
[1768299490133,0.00541803,92285.0,92272.0,0.10361312]
[1768299490538,0.00541803,92285.0,92272.0,0.010848]
[1768299490839,0.00541803,92285.0,92269.0,0.1031844]
[1768299491036,0.03701201,92285.0,92268.0,0.010848]
[1768299491445,0.010847,92277.0,92256.0,0.01085]
[1768299491646,0.03079135,92277.0,92257.0,0.10853]
[1768299491942,0.03620938,92285.0,92263.0,0.0923364]
[1768299492243,0.03620938,92285.0,92266.0,0.010848]
[1768299493035,0.010847,92282.0,92263.0,0.10361412]
[1768299493234,0.04163835,92282.0,92263.0,0.10361412]
[1768299494042,0.03079135,92282.0,92263.0,0.10361412]
[1768299495037,0.03079135,92282.0,92265.0,0.010849]
[1768299495836,0.02729916,92280.0,92260.0,0.0923364]
[1768299496039,0.010848,92274.0,92257.0,0.09574273]
[1768299496345,0.010848,92274.0,92258.0,0.09768]
[1768299496945,0.010847,92277.0,92258.0,0.09768]
[1768299497144,0.010847,92277.0,92259.0,0.010849]
[1768299497334,0.12671739,92278.0,92261.0,0.010849]
[1768299497535,0.12671739,92278.0,92263.0,0.010849]
[1768299497735,0.02762109,92282.0,92263.0,0.010849]
[1768299498044,0.02762109,92282.0,92266.0,0.010849]
[1768299499047,0.02762109,92282.0,92268.0,0.010848]
[1768299499249,0.11026523,92284.0,92268.0,0.010848]
[1768299499544,0.00541803,92285.0,92270.0,0.20435582]
[1768299499844,0.00541803,92285.0,92271.0,0.09776509]
[1768299500250,0.01626403,92285.0,92271.0,0.09776509]
[1768299500538,0.00541803,92285.0,92271.0,0.08576509]
[1768299501245,0.00541803,92285.0,92270.0,0.09574273]
[1768299501649,0.00541803,92285.0,92271.0,0.10659073]
[1768299502446,0.00541803,92285.0,92272.0,0.09776509]
[1768299502745,0.00541803,92285.0,92272.0,0.19350782]
[1768299502945,0.00541803,92285.0,92273.0,0.09776509]
[1768299508152,0.00541803,92285.0,92273.0,0.07676509]
[1768299508949,0.06090604,92279.0,92255.0,0.09574273]
[1768299509262,0.06090604,92278.0,92255.0,0.09574273]
[1768299509856,0.09941823,92279.0,92259.0,0.09574273]
[1768299510252,0.09941823,92279.0,92260.0,0.19350782]
[1768299510753,0.010848,92271.0,92260.0,0.19350782]
[1768299510954,0.010848,92271.0,92256.0,0.10861509]
[1768299511155,0.010848,92271.0,92256.0,0.20435782]
[1768299511656,0.010848,92271.0,92257.0,0.09776509]
[1768299512154,0.07396017,92277.0,92257.0,0.09776509]
[1768299512454,0.19370088,92270.0,92251.0,0.09574273]
[1768299512656,0.010849,92264.0,92251.0,0.19338273]
[1768299512956,0.010848,92267.0,92251.0,0.30199782]
[1768299513459,0.010848,92267.0,92253.0,0.01085]
[1768299513755,0.010848,92267.0,92251.0,0.30199782]
[1768299514158,0.19370088,92270.0,92251.0,0.19350782]
[1768299515544,0.010849,92267.0,92252.0,0.10527166]
[1768299515745,0.09941823,92275.0,92256.0,0.18879638]
[1768299515945,0.108487,92276.0,92261.0,0.010849]
[1768299516149,0.108487,92276.0,92261.0,0.10522372]
[1768299516354,0.09764,92276.0,92263.0,0.010849]
[1768299516548,0.09764,92276.0,92263.0,0.10522372]
[1768299517357,0.19653267,92293.0,92268.0,0.09437472]
[1768299517548,0.19653267,92293.0,92270.0,0.09437472]
[1768299517549,0.03610157,92284.0,92270.0,0.09437472]
[1768299517856,0.13054138,92280.0,92271.0,0.09442166]
[1768299519157,0.13054138,92281.0,92271.0,0.09442166]
[1768299519947,0.13054138,92281.0,92270.0,0.09437472]
[1768299521856,0.01626403,92285.0,92270.0,0.10522272]
[1768299522063,0.13054138,92280.0,92270.0,0.10522272]
[1768299523463,0.01626403,92285.0,92272.0,0.010848]
[1768299523464,0.00541803,92285.0,92272.0,0.010848]
[1768299523663,0.13054138,92282.0,92270.0,0.17264438]
[1768299523858,0.00541803,92285.0,92270.0,0.17264438]
[1768299524064,0.13054138,92280.0,92270.0,0.17264438]
[1768299524465,0.13054138,92280.0,92272.0,0.010848]
[1768299524668,0.13054138,92282.0,92272.0,0.010848]
[1768299524959,0.02527393,92281.0,92272.0,0.010848]
[1768299525265,0.13054138,92282.0,92272.0,0.010848]
[1768299525467,0.00541803,92285.0,92272.0,0.10526966]
[1768299526261,0.13054138,92282.0,92272.0,0.10526966]
[1768299526667,0.13054138,92282.0,92272.0,0.19964438]
[1768299526869,0.00541803,92285.0,92273.0,0.09442166]
[1768299527570,0.13054138,92283.0,92273.0,0.09442166]
[1768299528467,0.13054138,92283.0,92269.0,0.10526966]
[1768299528660,0.13054138,92280.0,92269.0,0.10526966]
[1768299529365,0.13054138,92280.0,92268.0,0.00016258]
[1768299529766,0.13054138,92278.0,92260.0,0.18879638]
[1768299529961,0.31622905,92280.0,92262.0,0.010849]
[1768299529962,0.13054138,92270.0,92262.0,0.010849]
[1768299530165,0.13054138,92272.0,92262.0,0.010849]
[1768299531265,0.13054138,92272.0,92261.0,0.086489]
[1768299531573,0.13054138,92272.0,92262.0,0.010849]
[1768299533373,0.010847,92277.0,92262.0,0.010849]
[1768299535274,0.010847,92277.0,92263.0,0.010849]
[1768299537676,0.09531381,92279.0,92265.0,0.010849]
[1768299537881,0.23176224,92280.0,92266.0,0.010848]
[1768299538072,0.22091524,92280.0,92262.0,0.09442166]
[1768299538382,0.22091524,92280.0,92267.0,0.010848]
[1768299538676,0.00016258,92283.0,92272.0,0.010848]
[1768299538883,0.15581229,92282.0,92267.0,0.09442166]
[1768299539073,0.13054138,92280.0,92267.0,0.08542166]
[1768299539278,0.00016258,92283.0,92267.0,0.08542166]
[1768299539586,0.02527056,92282.0,92267.0,0.08542166]
[1768299539874,0.02527056,92281.0,92273.0,0.010848]
[1768299540065,0.00016258,92283.0,92273.0,0.010848]
[1768299540383,0.02526986,92282.0,92273.0,0.010848]
[1768299540678,0.00016258,92283.0,92273.0,0.010848]
[1768299540876,0.00541803,92285.0,92271.0,0.09437472]
[1768299541086,0.13054138,92290.0,92280.0,0.010847]
[1768299541274,0.09764,92292.0,92280.0,0.010847]
[1768299541469,0.13054138,92290.0,92280.0,0.010847]
[1768299541674,0.09764,92292.0,92280.0,0.010847]
[1768299541977,0.13054138,92290.0,92278.0,0.010847]
[1768299542583,0.13054138,92290.0,92275.0,0.010847]
[1768299542782,0.13054138,92290.0,92273.0,0.09442166]
[1768299542783,0.13054138,92290.0,92276.0,0.010847]
[1768299543384,0.13054138,92290.0,92273.0,0.09442166]
[1768299543385,0.13054138,92290.0,92277.0,0.010847]
[1768299546689,0.13054138,92290.0,92273.0,0.08026866]
[1768299547090,0.09764,92292.0,92280.0,0.010847]
[1768299547278,0.13054138,92290.0,92280.0,0.010847]
[1768299547890,0.13054138,92290.0,92277.0,0.010847]
[1768299548388,0.010846,92291.0,92274.0,0.09721539]
[1768299548389,0.2028389,92292.0,92274.0,0.09721539]
[1768299548581,0.13054138,92290.0,92279.0,0.010847]
[1768299549293,0.13054138,92290.0,92281.0,0.010847]
[1768299549489,0.09764,92292.0,92283.0,0.010847]
[1768299550083,0.09764,92292.0,92281.0,0.010847]
[1768299550285,0.13054138,92291.0,92281.0,0.010847]
[1768299550892,0.13054138,92291.0,92274.0,0.09574448]
[1768299551090,0.0943529,92290.0,92271.0,0.09764]
[1768299551284,0.13054138,92281.0,92273.0,0.010848]
[1768299551483,0.13054138,92283.0,92272.0,0.09764]
[1768299551984,0.1051989,92285.0,92272.0,0.09764]
[1768299552187,0.0943529,92284.0,92273.0,0.010848]
[1768299552487,0.09885754,92285.0,92273.0,0.010848]
[1768299552887,0.0251693,92284.0,92273.0,0.010848]
[1768299553082,0.0251693,92283.0,92273.0,0.010848]
[1768299553392,0.010846,92287.0,92273.0,0.010848]
[1768299553591,0.02516869,92286.0,92273.0,0.010848]
[1768299553792,0.010846,92287.0,92273.0,0.010848]
[1768299553793,0.02516869,92285.0,92273.0,0.010848]
[1768299553994,0.02516869,92284.0,92273.0,0.010848]
[1768299554298,0.02516869,92283.0,92273.0,0.010848]
[1768299554493,0.010846,92287.0,92272.0,0.094488]
[1768299554990,0.09619759,92287.0,92273.0,0.010848]